Workbook

Sheet Instructions
B2: HOW TO USE THE DYNAMIC TOTAL COST OF OWNERSHIP DASHBOARD
B4: All cells highlighted Green are Input cells. Values can only be edited in these cells to observe the dynamic changes in the dashboard on the right.
B6: All cells highlighted Gray are Fixed cells. These values cannot be edited.
B9: CELL NAME | E9: FUNCTION | F9: ACTION REQUIRED
B10: Vehicle Holding Period (Year) | E10: Editable | F10: Use the drop down menu on Cell C5 to choose the Vehicle holding period from 1 to 10 years
B11: Daily Distance Travelled (km) | E11: Editable | F11: Use the arrows on the right to increase/decrease to input Daily Distance Travelled in km
B12: Daily Distance Travelled (mi) | E12: Fixed
B13: Annual Distance Travelled (km) | E13: Fixed
B14: Annual Distance Travelled (mi) | E14: Fixed
B15: `
B16: Vehicle Purchase Cost | E16: Editable | F16: Add number values to input the purchase cost of a LCFV
B17: Tax | E17: Editable | F17: Add number values to input Tax levied on the LCFV
B18: Annual Insurance Cost | E18: Editable | F18: Add number values to input Annual Insurance cost of the LCFV
B19: Financial Incentive | E19: Editable | F19: Add number values to input Total incentives including FAME subsidy & other miscellaneous incentives
B21: Discount Rate | E21: Editable | F21: Add percentage values to input the present value of future cash flows at the end of holding period
B22: Resale Rate | E22: Editable | F22: Add percentage values to input the resale value of the LCFV at the end of holding period
B24: Terms of Payment | E24: Editable | F24: Add number values to input the Total number of years of loan repayment
B25: Interest Rate | E25: Editable | F25: Add percentage values to input prevailing interest on LCFV Loans
B26: Equity | E26: Editable | F26: Add percentage values to input initial equity payment made for the purchase of the LCFV
B27: Monthly EMI | E27: Fixed
B28: Charging Infrastructure Cost | E28: Editable | F28: Add number values to input the Total cost of Charging Infrastructure
B30: Staff cost per Month | E30: Editable | F30: Add number values to input Total Staff cost incurred in a month
B31: Lithium-Ion Battery Cost | E31: Editable | F31: Add number values to input prevailing cost of Li-Ion battery in USD per kWh
B33: Fuel Cost | E33: Editable | F33: Add number values to input Total cost per unit of Fuel (in associated fuel units)
B34: Capacity of Battery | E34: Editable | F34: Add number values to input capacity of battery for Electric LCFVs in kWh
B35: Number of Battery Replacements | E35: Editable | F35: Add number values to input total number of battery replacements for Electric LCFV
B36: Mileage | E36: Editable | F36: Add number values to input mileage of different models of LCFVs
B37: Annual Maintenance Cost | E37: Editable | F37: Add number values to input the Annual Maintenance cost of an LCFV
B40: NOTES
B43: 1. For more details regarding Methodology and TCO calculations, please refer to the research paper. Total Cost of Ownership Analysis of the Impact of Vehicle Usage on the Economic Viability of Electric Vehicles in India, P. Kumar and S. Chakrabarty Transport. Res. Rec., 2020 (1-10)

Sheet LCFV TCO Dashboard
AK1: 10 YEAR | AL1: TCO | AR1: DYNAMIC | AS1: TCO
AK2: e-LCFV | AL2: =TCO_1!C11 -> 8.541074314 | AR2: e-LCFV | AS2: =VLOOKUP($C$5,$AR$10:$AV$20,2,0) -> 11.60948054
AK3: Petrol - LCFV | AL3: =TCO_1!D11 -> 11.11834293 | AR3: Petrol - LCFV | AS3: =VLOOKUP($C$5,$AR$10:$AV$20,3,0) -> 14.45554216
AK4: Diesel - LCFV | AL4: =TCO_1!E11 -> 11.75809116 | AR4: Diesel - LCFV | AS4: =VLOOKUP($C$5,$AR$10:$AV$20,4,0) -> 15.38730002
B5: Vehicle Holding Period (Year) | C5: 5 | D5: Use Drop down to choose Holding Period | AK5: CNG - LCFV | AL5: =TCO_1!F11 -> 8.959757971 | AR5: CNG - LCFV | AS5: =VLOOKUP($C$5,$AR$10:$AV$20,5,0) -> 11.99245747
B7: Daily Distance Travelled (km) | C7: 150 | E7: (Use Arrows to input Distance)
B8: Daily Distance Travelled (mi) | C8: =C7*0.621371 -> 93.20565
B10: Annual Distance Travelled (km) | C10: =C7*315 -> 47250 | AK10: Operational Years | AL10: e-LCFV | AM10: Petrol - LCFV | AN10: Diesel - LCFV | AO10: CNG - LCFV | AS10: e-LCFV | AT10: Petrol - LCFV | AU10: Diesel - LCFV | AV10: CNG - LCFV
B11: Annual Distance Travelled (mi) | C11: =C8*315 -> 29359.77975 | AK11: Year 1 | AL11: =TCO_1!C31 -> 28.30562818 | AM11: =TCO_1!C34 -> 26.86992717 | AN11: =TCO_1!C37 -> 29.8297341 | AO11: =TCO_1!C40 -> 26.50860211 | AR11: 1 | AS11: =IF($C$5=AR11,AL11:AO11,) -> 0
AK12: Year 2 | AL12: =TCO_1!D31 -> 18.29267381 | AM12: =TCO_1!D34 -> 19.87267614 | AN12: =TCO_1!D37 -> 21.58199144 | AO12: =TCO_1!D40 -> 17.957848 | AR12: 2 | AS12: =IF($C$5=AR12,AL12:AO12,) -> 0
AK13: Year 3 | AL13: =TCO_1!E31 -> 14.75501498 | AM13: =TCO_1!E34 -> 17.18001124 | AN13: =TCO_1!E37 -> 18.4643724 | AO13: =TCO_1!E40 -> 14.86058121 | AR13: 3 | AS13: =IF($C$5=AR13,AL13:AO13,) -> 0
AK14: Year 4 | AL14: =TCO_1!F31 -> 12.85044762 | AM14: =TCO_1!F34 -> 15.5884723 | AN14: =TCO_1!F37 -> 16.65489814 | AO14: =TCO_1!F40 -> 13.14405862 | AR14: 4 | AS14: =IF($C$5=AR14,AL14:AO14,) -> 0
C15: INR | AK15: Year 5 | AL15: =TCO_1!G31 -> 11.60948054 | AM15: =TCO_1!G34 -> 14.45554216 | AN15: =TCO_1!G37 -> 15.38730002 | AO15: =TCO_1!G40 -> 11.99245747 | AR15: 5 | AS15: =IF($C$5=AR15,AL15:AO15,) -> 11.60948054 | AT15: 14.45554216 | AU15: 15.38730002 | AV15: 11.99245747
AK16: Year 6 | AL16: =TCO_1!H31 -> 10.70815366 | AM16: =TCO_1!H34 -> 13.5656654 | AN16: =TCO_1!H37 -> 14.40473584 | AO16: =TCO_1!H40 -> 11.13287105 | AR16: 6 | AS16: =IF($C$5=AR16,AL16:AO16,) -> 0
AK17: Year 7 | AL17: =TCO_1!I31 -> 10.00700602 | AM17: =TCO_1!I34 -> 12.82538313 | AN17: =TCO_1!I37 -> 13.59602409 | AO17: =TCO_1!I40 -> 10.44758645 | AR17: 7 | AS17: =IF($C$5=AR17,AL17:AO17,) -> 0
AK18: Year 8 | AL18: =TCO_1!J31 -> 9.435812834 | AM18: =TCO_1!J34 -> 12.1871082 | AN18: =TCO_1!J37 -> 12.90469371 | AO18: =TCO_1!J40 -> 9.877148017 | AR18: 8 | AS18: =IF($C$5=AR18,AL18:AO18,) -> 0
B19: MODEL | C19: e-LCFV | D19: Petrol - LCFV | E19: Diesel - LCFV | F19: CNG - LCFV | AK19: Year 9 | AL19: =TCO_1!K31 -> 8.955160679 | AM19: =TCO_1!K34 -> 11.62371002 | AN19: =TCO_1!K37 -> 12.29866037 | AO19: =TCO_1!K40 -> 9.388040415 | AR19: 9 | AS19: =IF($C$5=AR19,AL19:AO19,) -> 0
B20: =VLOOKUP($C$15,Currency!$B$17:$C$19,2,0) -> Vehicle Purchase Cost (₹) | C20: 775000 | D20: 441000 | E20: 529000 | F20: 565000 | AK20: Year 10 | AL20: =TCO_1!L31 -> 8.541074314 | AM20: =TCO_1!L34 -> 11.11834293 | AN20: =TCO_1!L37 -> 11.75809116 | AO20: =TCO_1!L40 -> 8.959757971 | AR20: 10 | AS20: =IF($C$5=AR20,AL20:AO20,) -> 0
B21: =VLOOKUP($C$15,Currency!$B$21:$C$23,2,0) -> Road Tax (₹) | C21: 0 | D21: 31991 | E21: 31991 | F21: 32500
B22: =VLOOKUP($C$15,Currency!$B$25:$C$27,2,0) -> Insurance cost (₹) | C22: 15500 | D22: 11293 | E22: 15870 | F22: 16950
B23: =VLOOKUP($C$15,Currency!$B$29:$C$31,2,0) -> Financial Incentive (₹) | C23: 240000 | AL23: e-LCFV | AM23: Petrol - LCFV | AN23: Diesel - LCFV | AO23: CNG - LCFV
B25: Discount Rate (%) | C25: 0.1 | D25: 0.1 | E25: 0.1 | F25: 0.1
B26: Resale Rate (%) | C26: 0.2 | D26: 0.1 | E26: 0.1 | F26: 0.1
B28: =VLOOKUP($C$15,Currency!$B$45:$C$47,2,0) -> Financing Component (₹) | AK28: Total Fixed Cost | AL28: =TCO_1!C10/TCO_1!C9 -> 3.39499091 | AM28: =TCO_1!D10/TCO_1!D9 -> 2.121628326 | AN28: =TCO_1!E10/TCO_1!E9 -> 2.531546335 | AO28: =TCO_1!F10/TCO_1!F9 -> 2.698301542
B29: Term of Payment (Years) | C29: 7 | D29: 7 | E29: 7 | F29: 7
B30: Interest Rate (%) | C30: 0.08 | D30: 0.11 | E30: 0.11 | F30: 0.11 | AK30: Total Variable Cost | AL30: =TCO_1!L22/TCO_1!C9 -> 5.146083404 | AM30: =TCO_1!L23/TCO_1!D9 -> 8.996714602 | AN30: =TCO_1!L24/TCO_1!E9 -> 9.226544829 | AO30: =TCO_1!L25/TCO_1!F9 -> 6.261456429
B31: Equity (%) | C31: 0.2 | D31: 0.2 | E31: 0.2 | F31: 0.2 | AK31: Total TCO | AL31: =SUM(AL28:AL30) -> 8.541074314 | AM31: =SUM(AM28:AM30) -> 11.11834293 | AN31: =SUM(AN28:AN30) -> 11.75809116 | AO31: =SUM(AO28:AO30) -> 8.959757971
B32: =VLOOKUP($C$15,Currency!$B$49:$C$51,2,0) -> Monthly EMI (₹) | C32: =Financing!B12 -> 6696.375955 | D32: =Financing!C12 -> 6061.795574 | E32: =Financing!D12 -> 7271.405575 | F32: =Financing!E12 -> 7766.24603
B33: =VLOOKUP($C$15,Currency!$B$53:$C$55,2,0) -> Charging Infrastructure Cost (₹) | C33: 372000
AK36: Cost Components | AL36: e-LCFV | AM36: Petrol - LCFV | AN36: Diesel - LCFV | AO36: CNG - LCFV
AK37: Fixed | AL37: =Summary!B18 -> 1056995.58 | AM37: =Summary!C18 -> 640674.8282 | AN37: =Summary!D18 -> 764459.0683 | AO37: =Summary!E18 -> 814814.6666
AK38: Maintenance | AL38: =Summary!B22 -> 15017 | AM38: =Summary!C22 -> 24726 | AN38: =Summary!D22 -> 27200 | AO38: =Summary!E22 -> 25200
B39: =VLOOKUP($C$15,Currency!$B$33:$C$35,2,0) -> Staff Cost per Month (₹) | C39: 25000 | AK39: Battery Replacement | AL39: =Summary!B23 -> 24002.4 | AM39: =Summary!C23 -> 0 | AN39: =Summary!D23 -> 0 | AO39: =Summary!E23 -> 0
B40: Lithium-Ion Battery Cost (USD/kWh) | C40: 137
AK41: Fuel | AL41: =Summary!B24 -> 56700 | AM41: =Summary!C24 -> 367096.1538 | AN41: =Summary!D24 -> 382295.4545 | AO41: =Summary!E24 -> 156288.4615
B42: MODEL | C42: e-LCFV | D42: Petrol - LCFV | E42: Diesel - LCFV | F42: CNG - LCFV
B43: =VLOOKUP($C$15,Currency!$B$37:$C$39,2,0) -> Fuel cost (₹/kWh; ₹/L; ₹/kg ) | C43: 6 | D43: 101 | E43: 89 | F43: 43 | AL43: e-LCFV | AM43: Petrol - LCFV | AN43: Diesel - LCFV | AO43: CNG - LCFV
B44: Capacity of Battery (kWh) | C44: 20
B45: Number of Battery Replacements | C45: 1
B46: Mileage (km/kWh; km/L; km/kg) | C46: 5 | D46: 13 | E46: 11 | F46: 13
B47: =VLOOKUP($C$15,Currency!$B$41:$C$43,2,0) -> Annual Maintenance Cost (₹) | C47: 15017 | D47: 24726 | E47: 27200 | F47: 25200 | AK47: Fixed Cost | AL47: =AL28/AL31 -> 0.3974899158 | AM47: =AM28/AM31 -> 0.19082235 | AN47: 0.2153024925 | AO47: 0.3011578606
AK48: Variable Cost | AL48: =AL30/AL31 -> 0.6025100842 | AM48: =AM30/AM31 -> 0.80917765 | AN48: 0.7846975075 | AO48: 0.6988421394
B52: NOTES | AL52: =SUM(AL47:AL51) -> 1 | AM52: =SUM(AM47:AM51) -> 1 | AN52: =SUM(AN47:AN51) -> 1 | AO52: =SUM(AO47:AO51) -> 1
B54: 1. Financial Incentives can be added by referencing Department of Heavy Industry's website
B55: https://fame2.heavyindustry.gov.in/ModelUnderFame.aspx | AK55: ADTT | AL55: e-LCFV | AM55: Petrol - LCFV | AN55: Diesel - LCFV | AO55: CNG - LCFV
AK56: 50 | AL56: 24.36 | AM56: 23.48 | AN56: 25.51 | AO56: 23.16
B57: 2. Additional Features like Sensitivity Analysis will be added in the next iteration of the model | AK57: 100 | AL57: 12.49 | AM57: 13.87 | AN57: 15.21 | AO57: 12.64
AK58: 150 | AL58: 8.53 | AM58: 10.66 | AN58: 11.78 | AO58: 9.14
AK59: 200 | AL59: 6.55 | AM59: 9.06 | AN59: 10.06 | AO59: 7.38
Q64: =300 -> 300 | AK64: 10 YEAR | AL64: TCO / ton
AK65: e-LCFV | AL65: =AL2/0.4 -> 21.35268578
AK66: Petrol - LCFV | AL66: =AL3/0.71 -> 15.65963793
AK67: Diesel - LCFV | AL67: =AL4/0.71 -> 16.56069178
AK68: CNG - LCFV | AL68: =AL5/0.71 -> 12.61937742
AK71: Operational Years | AL71: e-LCFV | AM71: Petrol - LCFV | AN71: Diesel - LCFV | AO71: CNG - LCFV
AK72: Year 1 | AL72: =AL11/0.38 -> 74.4884952 | AM72: =AM11/0.71 -> 37.84496785 | AN72: 42.01371 | AO72: 37.33605931
AK73: Year 2 | AL73: 48.13861528 | AM73: 27.98968471 | AN73: 30.39717104 | AO73: 25.29274367
AK74: Year 3 | AL74: 38.82898679 | AM74: 24.19719894 | AN74: 26.00615831 | AO74: 20.93039607
AK75: Year 4 | AL75: 33.81696742 | AM75: 21.95559479 | AN75: 23.45760301 | AO75: 18.51275862
AK76: Year 5 | AL76: 30.55126457 | AM76: 20.35991853 | AN76: 21.67225355 | AO76: 16.89078516
AK77: Year 6 | AL77: 28.17935174 | AM77: 19.10657098 | AN77: 20.28836034 | AO77: 15.68010007
AK78: Year 7 | AL78: 26.33422637 | AM78: 18.0639199 | AN78: 19.1493297 | AO78: 14.7149105
AK79: Year 8 | AL79: 24.83108641 | AM79: 17.16494112 | AN79: 18.17562494 | AO79: 13.91147608
AK80: Year 9 | AL80: 23.56621231 | AM80: 16.37142257 | AN80: 17.32205686 | AO80: 13.22259213
AK81: Year 10 | AL81: 22.47651135 | AM81: 15.65963793 | AN81: 16.56069178 | AO81: 12.61937742

Sheet Sensitivity (hidden)
B2: Vehicle Utilization | C2: 0.5 | D2: 0.25 | E2: -0.25 | F2: -0.5
B3: e-LCFV | C3: =(C2*'LCFV TCO Dashboard'!$C$7)+'LCFV TCO Dashboard'!$C$7 -> 225 | D3: =(D2*'LCFV TCO Dashboard'!$C$7)+'LCFV TCO Dashboard'!$C$7 -> 187.5 | E3: =(E2*'LCFV TCO Dashboard'!$C$7)+'LCFV TCO Dashboard'!$C$7 -> 112.5 | F3: =(F2*'LCFV TCO Dashboard'!$C$7)+'LCFV TCO Dashboard'!$C$7 -> 75
B4: Petrol | C4: =C3 -> 225 | D4: =D3 -> 187.5 | E4: 112.5 | F4: 75
B5: Diesel | C5: =C4 -> 225 | D5: =D4 -> 187.5 | E5: =E4 -> 112.5 | F5: =F4 -> 75
B6: CNG | C6: 225 | D6: 187.5 | E6: 112.5 | F6: 75
C8: 0.5 | D8: 0.25 | E8: -0.25 | F8: -0.5 | G8: TCO
B9: e-LCFV | C9: 8.53 | D9: 10.11 | E9: 16.45 | F9: 24.36 | G9: 12.49
B10: Petrol | C10: 10.66 | D10: 11.94 | E10: 17.07 | F10: 23.48 | G10: 13.87
B11: Diesel | C11: 11.78 | D11: 13.15 | E11: 18.64 | F11: 25.51 | G11: 15.21
B12: CNG | C12: 9.14 | D12: 10.54 | E12: 16.15 | F12: 23.16 | G12: 12.64
B16: Sensitivity | C16: 0.5 | D16: 0.25 | E16: -0.25 | F16: -0.5
B17: ADTD | C17: 150km | D17: 125km | E17: 75km | F17: 50km
B18: e-LCFV | C18: =(C9-$G$9)/$G$9 -> -0.3170536429 | D18: =(D9-$G$9)/$G$9 -> -0.190552442 | E18: 0.3170536429 | F18: 0.9503602882
B19: Petrol | C19: =(C10-$G$10)/$G$10 -> -0.2314347513 | D19: =(D10-$G$10)/$G$10 -> -0.139149243 | E19: 0.2307137707 | F19: 0.6928622927
B20: Diesel | C20: =(C11-$G$11)/$G$11 -> -0.2255095332 | D20: =(D11-$G$11)/$G$11 -> -0.1354372124 | E20: 0.2255095332 | F20: 0.6771860618
B21: CNG | C21: =(C12-$G$12)/$G$12 -> -0.2768987342 | D21: =(D12-$G$12)/$G$12 -> -0.1661392405 | E21: 0.2776898734 | F21: 0.832278481

Sheet Summary
A1: TRAVEL DETAILS
A2: Number of Vehicle | B2: 1
A3: Life of Vehicle (yrs) | B3: 10
A4: Annual drive distance (KM) | B4: ='LCFV TCO Dashboard'!C10 -> 47250
A5: Total Distance Travel (KM) | B5: =B3*B4 -> 472500
A6: LIB Cost (USD/kWh) | B6: ='LCFV TCO Dashboard'!C40 -> 137
A7: USD to INR | B7: 73
A8: General Inputs | B8: e-LCFV | C8: Petrol - LCFV | D8: Diesel - LCFV | E8: CNG - LCFV
A9: Discount rate (%) | B9: ='LCFV TCO Dashboard'!C25 -> 0.1 | C9: ='LCFV TCO Dashboard'!D25 -> 0.1 | D9: ='LCFV TCO Dashboard'!E25 -> 0.1 | E9: ='LCFV TCO Dashboard'!F25 -> 0.1
A10: Resale rate (%) | B10: ='LCFV TCO Dashboard'!C26 -> 0.2 | C10: ='LCFV TCO Dashboard'!D26 -> 0.1 | D10: ='LCFV TCO Dashboard'!E26 -> 0.1 | E10: ='LCFV TCO Dashboard'!F26 -> 0.1
A12: Capital Cost | B12: e-LCFV | C12: Petrol - LCFV | D12: Diesel - LCFV | E12: CNG - LCFV
A13: Total Vehicle Cost (₹) | B13: ='Capital Cost'!B8 -> 924995.5802 | C13: ='Capital Cost'!C8 -> 640674.8282 | D13: ='Capital Cost'!D8 -> 764459.0683 | E13: ='Capital Cost'!E8 -> 814814.6666
A14: Resale Value (₹) | B14: =B13*B10 -> 184999.116 | C14: =C13*C10 -> 64067.48282 | D14: =D13*D10 -> 76445.90683 | E14: =E13*E10 -> 81481.46666
A15: Total Charging Infrastructure Cost (₹/Vehicle) | B15: ='LCFV TCO Dashboard'!C33/Summary!B2 -> 372000 | C15: ='Capital Cost'!C19/B2 -> 0 | D15: ='Capital Cost'!D19/B2 -> 0 | E15: ='Capital Cost'!E19/B2 -> 0
A16: Misc. Cost (₹) | B16: 0 | C16: 0 | D16: 0 | E16: 0
A17: Financial Incentive (₹) | B17: ='LCFV TCO Dashboard'!C23 -> 240000 | C17: 0 | D17: 0 | E17: 0
A18: Total Capital Cost (₹) excl. Resale Value | B18: =(B13+B15+B16)-B17 -> 1056995.58 | C18: =(C13+C15+C16)-C17 -> 640674.8282 | D18: 764459.0683 | E18: 814814.6666
A20: Annual Operational Cost | B20: e-LCFV | C20: Petrol - LCFV | D20: Diesel - LCFV | E20: CNG - LCFV
A21: Staff Cost (₹) | B21: ='Operational Cost'!B4 -> 300000 | C21: ='Operational Cost'!C4 -> 300000 | D21: ='Operational Cost'!D4 -> 300000 | E21: ='Operational Cost'!E4 -> 300000
A22: Maintenance Cost (₹) | B22: ='Operational Cost'!B18 -> 15017 | C22: ='Operational Cost'!C18 -> 24726 | D22: ='Operational Cost'!D18 -> 27200 | E22: ='Operational Cost'!E18 -> 25200
A23: Battery Replacement Cost (₹)* | B23: ='Operational Cost'!B27/B3 -> 24002.4 | C23: ='Operational Cost'!C27/B3 -> 0 | D23: ='Operational Cost'!D27/B3 -> 0
A24: Average Fuel Cost (₹) | B24: ='Operational Cost'!B11 -> 56700 | C24: ='Operational Cost'!C11 -> 367096.1538 | D24: ='Operational Cost'!D11 -> 382295.4545 | E24: ='Operational Cost'!E11 -> 156288.4615
A25: Misc. Cost (₹) | B25: 0 | C25: 0 | D25: 0 | E25: 0
A26: Total Operational Cost (₹) | B26: =(SUM(B21:B25)) -> 395719.4 | C26: =(SUM(C21:C25)) -> 691822.1538 | D26: =(SUM(D21:D25)) -> 709495.4545 | E26: =(SUM(E21:E25)) -> 481488.4615
A28: Total Operational Cost for life of LCFV | B28: =B26*$B$3 -> 3957194 | C28: =C26*$B$3 -> 6918221.538 | D28: =D26*$B$3 -> 7094954.545 | E28: =E26*$B$3 -> 4814884.615
A29: Average TCO | B29: =TCO_1!C11 -> 8.541074314 | C29: =TCO_1!D11 -> 11.11834293 | D29: =TCO_1!E11 -> 11.75809116 | E29: =TCO_1!F11 -> 8.959757971

Sheet Currency (hidden)
B2: CURRENCY CONVERSION
B4: USD | C4: INR | D4: Conversion
B5: 1 | C5: 73 | D5: =B5*C5 -> 73
B7: EURO | C7: INR | D7: Conversion
B8: 1 | C8: 82 | D8: =B8*C8 -> 82
B16: DROP DOWN | E16: DASHBOARD TITLE | H16: Gallon Calculation | K16: DASHBOARD TITLE 2
B17: INR | C17: =IF(B17='LCFV TCO Dashboard'!$C$15,"Vehicle Purchase Cost (₹)","") -> Vehicle Purchase Cost (₹) | E17: INR | F17: =IF(E17='LCFV TCO Dashboard'!C15,"TCO BY MODELS AT YEAR 10 (₹ / km)","") -> TCO BY MODELS AT YEAR 10 (₹ / km) | H17: USD | K17: 1 | L17: =IF('LCFV TCO Dashboard'!$C$5=Currency!K17,"TCO AT YEAR 1","") -> 
B18: USD | C18: =IF(B18='LCFV TCO Dashboard'!$C$15,"Vehicle Purchase Cost ($)","") ->  | E18: USD | F18: =IF(E18='LCFV TCO Dashboard'!C15,"TCO BY MODELS AT YEAR 10 ($ / mi)","") ->  | H18: Gallon Calculation | I18: =IF('[1]Dynamic Ranges for 2W'!$C$15=H17,'[1]Dynamic Ranges for 2W'!F38*3.78,"-") -> - | K18: 2 | L18: =IF('LCFV TCO Dashboard'!$C$5=Currency!K18,"TCO AT YEAR 2","") -> 
B19: EURO | C19: =IF(B19='LCFV TCO Dashboard'!$C$15,"Vehicle Purchase Cost (€)","") ->  | E19: EURO | F19: =IF(E19='LCFV TCO Dashboard'!C15,"TCO BY MODEL AT YEAR 10 (€ / km)","") ->  | K19: 3 | L19: =IF('LCFV TCO Dashboard'!$C$5=Currency!K19,"TCO AT YEAR 3","") -> 
K20: 4 | L20: =IF('LCFV TCO Dashboard'!$C$5=Currency!K20,"TCO AT YEAR 4","") -> 
B21: INR | C21: =IF(B21='LCFV TCO Dashboard'!$C$15,"Road Tax (₹)","") -> Road Tax (₹) | E21: INR | F21: =IF(E21='LCFV TCO Dashboard'!C15,"TCO BREAKDOWN BY COST AT YEAR 10 (₹ / km)","") -> TCO BREAKDOWN BY COST AT YEAR 10 (₹ / km) | K21: 5 | L21: =IF('LCFV TCO Dashboard'!$C$5=Currency!K21,"TCO AT YEAR 5","") -> TCO AT YEAR 5
B22: USD | C22: =IF(B22='LCFV TCO Dashboard'!$C$15,"Road Tax ($)","") ->  | E22: USD | F22: =IF(E22='LCFV TCO Dashboard'!C15,"TCO BREAKDOWN BY COST AT YEAR 10 ($ / mi)","") ->  | K22: 6 | L22: =IF('LCFV TCO Dashboard'!$C$5=Currency!K22,"TCO AT YEAR 6","") -> 
B23: EURO | C23: =IF(B23='LCFV TCO Dashboard'!$C$15,"Road Tax (€)","") ->  | E23: EURO | F23: =IF(E23='LCFV TCO Dashboard'!C15,"TCO BREAKDOWN BY COST AT YEAR 10 (€ / km)","") ->  | K23: 7 | L23: =IF('LCFV TCO Dashboard'!$C$5=Currency!K23,"TCO AT YEAR 7","") -> 
K24: 8 | L24: =IF('LCFV TCO Dashboard'!$C$5=Currency!K24,"TCO AT YEAR 8","") -> 
B25: INR | C25: =IF(B25='LCFV TCO Dashboard'!$C$15,"Insurance cost (₹)","") -> Insurance cost (₹) | E25: INR | F25: =IF(E25='LCFV TCO Dashboard'!C15,"TOTAL COST OF OWNERSHIP OVER YEARS (₹ / km)","") -> TOTAL COST OF OWNERSHIP OVER YEARS (₹ / km) | K25: 9 | L25: =IF('LCFV TCO Dashboard'!$C$5=Currency!K25,"TCO AT YEAR 9","") -> 
B26: USD | C26: =IF(B26='LCFV TCO Dashboard'!$C$15,"Insurance Cost ($)","") ->  | E26: USD | F26: =IF(E26='LCFV TCO Dashboard'!C15,"TOTAL COST OF OWNERSHIP OVER YEARS ($ / mi)","") ->  | K26: 10 | L26: =IF('LCFV TCO Dashboard'!$C$5=Currency!K26,"TCO AT YEAR 10","") -> 
B27: EURO | C27: =IF(B27='LCFV TCO Dashboard'!$C$15,"Insurance Cost (€)","") ->  | E27: EURO | F27: =IF(E27='LCFV TCO Dashboard'!C15,"TOTAL COST OF OWNERSHIP OVER YEARS (€ / km)","") -> 
B29: INR | C29: =IF(B29='LCFV TCO Dashboard'!$C$15,"Financial Incentive (₹)","") -> Financial Incentive (₹)
B30: USD | C30: =IF(B30='LCFV TCO Dashboard'!$C$15,"Financial Incentive ($)","") -> 
B31: EURO | C31: =IF(B31='LCFV TCO Dashboard'!$C$15,"Financial Incentive (€)","") -> 
B33: INR | C33: =IF(B33='LCFV TCO Dashboard'!$C$15,"Staff Cost per Month (₹)","") -> Staff Cost per Month (₹)
B34: USD | C34: =IF(B34='LCFV TCO Dashboard'!$C$15,"Staff Cost per Month ($)","") -> 
B35: EURO | C35: =IF(B35='LCFV TCO Dashboard'!$C$15,"Staff Cost per Month (€)","") -> 
B37: INR | C37: =IF(B37='LCFV TCO Dashboard'!$C$15,"Fuel cost (₹/kWh; ₹/L; ₹/kg )","") -> Fuel cost (₹/kWh; ₹/L; ₹/kg )
B38: USD | C38: =IF(B38='LCFV TCO Dashboard'!$C$15,"Fuel cost ($/kWh; $/gal; $/GGE)","") -> 
B39: EURO | C39: =IF(B39='LCFV TCO Dashboard'!$C$15,"Fuel cost (€/kWh; €/L; €/kg )","") -> 
B41: INR | C41: =IF(B41='LCFV TCO Dashboard'!$C$15,"Annual Maintenance Cost (₹)","") -> Annual Maintenance Cost (₹)
B42: USD | C42: =IF(B42='LCFV TCO Dashboard'!$C$15,"Annual Maintenance Cost ($)","") -> 
B43: EURO | C43: =IF(B43='LCFV TCO Dashboard'!$C$15,"Annual Maintenance Cost (€)","") -> 
B45: INR | C45: =IF(B45='LCFV TCO Dashboard'!$C$15,"Financing Component (₹)","") -> Financing Component (₹)
B46: USD | C46: =IF(B46='LCFV TCO Dashboard'!$C$15,"Financing Component ($)","") -> 
B47: EURO | C47: =IF(B47='LCFV TCO Dashboard'!$C$15,"Financing Component (€)","") -> 
B49: INR | C49: =IF(B49='LCFV TCO Dashboard'!$C$15,"Monthly EMI (₹)","") -> Monthly EMI (₹)
B50: USD | C50: =IF(B50='LCFV TCO Dashboard'!$C$15,"Monthly EMI ($)","") -> 
B51: EURO | C51: =IF(B51='LCFV TCO Dashboard'!$C$15,"Monthly EMI (€)","") -> 
B53: INR | C53: =IF(B53='LCFV TCO Dashboard'!$C$15,"Charging Infrastructure Cost (₹)","") -> Charging Infrastructure Cost (₹)
B54: USD | C54: =IF(B54='LCFV TCO Dashboard'!$C$15,"Charging Infrastructure Cost ($)","") -> 
B55: EURO | C55: =IF(B55='LCFV TCO Dashboard'!$C$15,"Charging Infrastructure Cost (€)","") -> 

Sheet Capital Cost (hidden)
A1: Vehicle Cost | B1: e-LCFV | C1: Petrol - LCFV | D1: Diesel - LCFV | E1: CNG - LCFV
A2: Purchase Cost (₹) | B2: =VLOOKUP('LCFV TCO Dashboard'!$C$15,'Capital Cost'!$A$25:$E$27,2,0) -> 775000 | C2: =VLOOKUP('LCFV TCO Dashboard'!$C$15,'Capital Cost'!$A$25:$E$27,3,0) -> 441000 | D2: =VLOOKUP('LCFV TCO Dashboard'!$C$15,'Capital Cost'!$A$25:$E$27,4,0) -> 529000 | E2: =VLOOKUP('LCFV TCO Dashboard'!$C$15,'Capital Cost'!$A$25:$E$27,5,0) -> 565000
A3: Tax (₹) | B3: =VLOOKUP('LCFV TCO Dashboard'!$C$15,'Capital Cost'!$A$30:$E$32,2,0) -> 0 | C3: =VLOOKUP('LCFV TCO Dashboard'!$C$15,'Capital Cost'!$A$30:$E$32,3,0) -> 31991 | D3: =VLOOKUP('LCFV TCO Dashboard'!$C$15,'Capital Cost'!$A$30:$E$32,4,0) -> 31991 | E3: =VLOOKUP('LCFV TCO Dashboard'!$C$15,'Capital Cost'!$A$30:$E$32,5,0) -> 32500
A4: Insurance (₹) | B4: =VLOOKUP('LCFV TCO Dashboard'!$C$15,'Capital Cost'!$A$35:$E$37,2,0) -> 15500 | C4: =VLOOKUP('LCFV TCO Dashboard'!$C$15,'Capital Cost'!$A$35:$E$37,3,0) -> 11293 | D4: =VLOOKUP('LCFV TCO Dashboard'!$C$15,'Capital Cost'!$A$35:$E$37,4,0) -> 15870 | E4: =VLOOKUP('LCFV TCO Dashboard'!$C$15,'Capital Cost'!$A$35:$E$37,5,0) -> 16950
A5: Financing Component (₹) | B5: =Financing!B17 -> 134495.5802 | C5: =Financing!C17 -> 156390.8282 | D5: =Financing!D17 -> 187598.0683 | E5: =Financing!E17 -> 200364.6666
A6: Total Financial Incentive (₹) | B6: 0 | C6: 0 | D6: 0 | E6: 0
A7: Misc. Cost (₹) | B7: 0 | C7: 0 | D7: 0 | E7: 0
A8: Total Vehicle Cost (₹) | B8: =((B2+B3+B4+B5+B7)-B6) -> 924995.5802 | C8: =((C2+C3+C4+C5+C7)-C6) -> 640674.8282 | D8: =((D2+D3+D4+D5+D7)-D6) -> 764459.0683 | E8: =((E2+E3+E4+E5+E7)-E6) -> 814814.6666
A10: Charging Infrastructure Cost | B10: e-LCFV | C10: Petrol - LCFV | D10: Diesel - LCFV | E10: CNG - LCFV
A11: No. of Slow Charger (SC) | B11: 1 | C11: 0 | D11: 0 | E11: 0
A12: Cost of SC per unit (₹) | B12: 310000 | C12: 0 | D12: 0 | E12: 0
A13: Total Cost of SC (₹) | B13: =B11*B12 -> 310000 | C13: =C11*C12 -> 0 | D13: =D11*D12 -> 0 | E13: 0
A14: No. of Fast Charger (FC) | B14: 0 | C14: 0 | D14: 0 | E14: 0
A15: Cost of FC per unit (₹) | B15: 1500000 | C15: 0 | D15: 0 | E15: 0
A16: Total Cost of FC (₹) | B16: =B14*B15 -> 0 | C16: =C14*C15 -> 0 | D16: =D14*D15 -> 0 | E16: 0
A17: Installation cost of Charging Infra (₹) | B17: =(B13+B16)*20/100 -> 62000 | C17: =(C13+C16)*20/100 -> 0 | D17: =(D13+D16)*20/100 -> 0 | E17: 0
A18: Total incentive for Charging Infra (₹) | B18: 0 | C18: 0 | D18: 0 | E18: 0
A19: Total Cost of Charging Infra (Rs.) | B19: =(B13+B16+B17)-B18 -> 372000 | C19: =(C13+C16+C17)-C18 -> 0 | D19: =(D13+D16+D17)-D18 -> 0 | E19: 0
A22: Per Km Capital Cost | B22: =(B8+B19)/Summary!$B$4 -> 27.44964191 | C22: =(C8+C19)/Summary!$B$4 -> 13.55925562 | D22: =(D8+D19)/Summary!$B$4 -> 16.1790279 | E22: =(E8+E19)/Summary!$B$4 -> 17.24475485
A24: PURCHASE COST
A25: INR | B25: =IF($A$25='LCFV TCO Dashboard'!$C$15,'LCFV TCO Dashboard'!C20,) -> 775000 | C25: =IF($A$25='LCFV TCO Dashboard'!$C$15,'LCFV TCO Dashboard'!D20,) -> 441000 | D25: =IF($A$25='LCFV TCO Dashboard'!$C$15,'LCFV TCO Dashboard'!E20,) -> 529000 | E25: =IF($A$25='LCFV TCO Dashboard'!$C$15,'LCFV TCO Dashboard'!F20,) -> 565000
A26: USD | B26: =IF($A$26='LCFV TCO Dashboard'!$C$15,'LCFV TCO Dashboard'!C20*Currency!$C$5,) -> 0 | C26: =IF($A$26='LCFV TCO Dashboard'!$C$15,'LCFV TCO Dashboard'!D20*Currency!$C$5,) -> 0 | D26: =IF($A$26='LCFV TCO Dashboard'!$C$15,'LCFV TCO Dashboard'!E20*Currency!$C$5,) -> 0 | E26: =IF($A$26='LCFV TCO Dashboard'!$C$15,'LCFV TCO Dashboard'!F20*Currency!$C$5,) -> 0
A27: EURO | B27: =IF($A$27='LCFV TCO Dashboard'!$C$15,'LCFV TCO Dashboard'!C20*Currency!$C$8,) -> 0 | C27: =IF($A$27='LCFV TCO Dashboard'!$C$15,'LCFV TCO Dashboard'!D20*Currency!$C$8,) -> 0 | D27: =IF($A$27='LCFV TCO Dashboard'!$C$15,'LCFV TCO Dashboard'!E20*Currency!$C$8,) -> 0 | E27: =IF($A$27='LCFV TCO Dashboard'!$C$15,'LCFV TCO Dashboard'!F20*Currency!$C$8,) -> 0
A29: TAX
A30: INR | B30: =IF($A$30='LCFV TCO Dashboard'!$C$15,'LCFV TCO Dashboard'!C21,) -> 0 | C30: =IF($A$30='LCFV TCO Dashboard'!$C$15,'LCFV TCO Dashboard'!D21,) -> 31991 | D30: =IF($A$30='LCFV TCO Dashboard'!$C$15,'LCFV TCO Dashboard'!E21,) -> 31991 | E30: =IF($A$30='LCFV TCO Dashboard'!$C$15,'LCFV TCO Dashboard'!F21,) -> 32500
A31: USD | B31: =IF($A$31='LCFV TCO Dashboard'!$C$15,'LCFV TCO Dashboard'!C21*Currency!$C$5,) -> 0 | C31: =IF($A$31='LCFV TCO Dashboard'!$C$15,'LCFV TCO Dashboard'!D21*Currency!$C$5,) -> 0 | D31: =IF($A$31='LCFV TCO Dashboard'!$C$15,'LCFV TCO Dashboard'!E21*Currency!$C$5,) -> 0 | E31: =IF($A$31='LCFV TCO Dashboard'!$C$15,'LCFV TCO Dashboard'!F21*Currency!$C$5,) -> 0
A32: EURO | B32: =IF($A$32='LCFV TCO Dashboard'!$C$15,'LCFV TCO Dashboard'!C21*Currency!$C$8,) -> 0 | C32: =IF($A$32='LCFV TCO Dashboard'!$C$15,'LCFV TCO Dashboard'!D21*Currency!$C$8,) -> 0 | D32: =IF($A$32='LCFV TCO Dashboard'!$C$15,'LCFV TCO Dashboard'!E21*Currency!$C$8,) -> 0 | E32: =IF($A$32='LCFV TCO Dashboard'!$C$15,'LCFV TCO Dashboard'!F21*Currency!$C$8,) -> 0
A34: INSURANCE
A35: INR | B35: =IF($A$35='LCFV TCO Dashboard'!$C$15,'LCFV TCO Dashboard'!C22,) -> 15500 | C35: =IF($A$35='LCFV TCO Dashboard'!$C$15,'LCFV TCO Dashboard'!D22,) -> 11293 | D35: =IF($A$35='LCFV TCO Dashboard'!$C$15,'LCFV TCO Dashboard'!E22,) -> 15870 | E35: =IF($A$35='LCFV TCO Dashboard'!$C$15,'LCFV TCO Dashboard'!F22,) -> 16950
A36: USD | B36: =IF($A$36='LCFV TCO Dashboard'!$C$15,'LCFV TCO Dashboard'!C22*Currency!$C$5,) -> 0 | C36: =IF($A$36='LCFV TCO Dashboard'!$C$15,'LCFV TCO Dashboard'!D22*Currency!$C$5,) -> 0 | D36: =IF($A$36='LCFV TCO Dashboard'!$C$15,'LCFV TCO Dashboard'!E22*Currency!$C$5,) -> 0 | E36: =IF($A$36='LCFV TCO Dashboard'!$C$15,'LCFV TCO Dashboard'!F22*Currency!$C$5,) -> 0
A37: EURO | B37: =IF($A$37='LCFV TCO Dashboard'!$C$15,'LCFV TCO Dashboard'!C22*Currency!$C$8,) -> 0 | C37: =IF($A$37='LCFV TCO Dashboard'!$C$15,'LCFV TCO Dashboard'!D22*Currency!$C$8,) -> 0 | D37: =IF($A$37='LCFV TCO Dashboard'!$C$15,'LCFV TCO Dashboard'!E22*Currency!$C$8,) -> 0 | E37: =IF($A$37='LCFV TCO Dashboard'!$C$15,'LCFV TCO Dashboard'!F22*Currency!$C$8,) -> 0
A39: INCENTIVE
A40: INR | B40: =IF($A$40='LCFV TCO Dashboard'!$C$15,'LCFV TCO Dashboard'!C23,) -> 240000 | C40: =IF($A$40='LCFV TCO Dashboard'!$C$15,'LCFV TCO Dashboard'!D23,) -> 0 | D40: =IF($A$40='LCFV TCO Dashboard'!$C$15,'LCFV TCO Dashboard'!E23,) -> 0 | E40: =IF($A$40='LCFV TCO Dashboard'!$C$15,'LCFV TCO Dashboard'!F23,) -> 0
A41: USD | B41: =IF($A$41='LCFV TCO Dashboard'!$C$15,'LCFV TCO Dashboard'!C23*Currency!$C$5,) -> 0 | C41: =IF($A$41='LCFV TCO Dashboard'!$C$15,'LCFV TCO Dashboard'!D23*Currency!$C$5,) -> 0 | D41: =IF($A$41='LCFV TCO Dashboard'!$C$15,'LCFV TCO Dashboard'!E23*Currency!$C$5,) -> 0 | E41: =IF($A$41='LCFV TCO Dashboard'!$C$15,'LCFV TCO Dashboard'!F23*Currency!$C$5,) -> 0
A42: EURO | B42: =IF($A$42='LCFV TCO Dashboard'!$C$15,'LCFV TCO Dashboard'!C23*Currency!$C$8,) -> 0 | C42: =IF($A$42='LCFV TCO Dashboard'!$C$15,'LCFV TCO Dashboard'!D23*Currency!$C$8,) -> 0 | D42: =IF($A$42='LCFV TCO Dashboard'!$C$15,'LCFV TCO Dashboard'!E23*Currency!$C$8,) -> 0 | E42: =IF($A$42='LCFV TCO Dashboard'!$C$15,'LCFV TCO Dashboard'!F23*Currency!$C$8,) -> 0

Sheet Operational Cost (hidden)
A1: Staff cost | B1: e-LCFV | C1: Petrol - LCFV | D1: Diesel - LCFV | E1: CNG - LCFV
A2: Staff Cost (₹ / Month) | B2: ='LCFV TCO Dashboard'!C39 -> 25000 | C2: ='LCFV TCO Dashboard'!C39 -> 25000 | D2: ='LCFV TCO Dashboard'!C39 -> 25000 | E2: ='LCFV TCO Dashboard'!C39 -> 25000
A3: Other Support staff cost (₹ / Month) | B3: 0 | C3: 0 | D3: 0 | E3: 0
A4: Total Annual Staff Cost (₹) | B4: =((B2+B3)*12) -> 300000 | C4: =((C2+C3)*12) -> 300000 | D4: 300000 | E4: 300000
A5: Per km Staff Cost | B5: =B4/Summary!$B$4 -> 6.349206349 | C5: =C4/Summary!$B$4 -> 6.349206349 | D5: =D4/Summary!$B$4 -> 6.349206349 | E5: =E4/Summary!$B$4 -> 6.349206349
A7: Average Fuel Cost | B7: e-LCFV | C7: Petrol - LCFV | D7: Diesel - LCFV | E7: CNG - LCFV
A8: Fuel cost (₹/kWh; ₹/L; ₹/kg) | B8: =VLOOKUP('LCFV TCO Dashboard'!$C$15,'Operational Cost'!$A$45:$E$47,2,0) -> 6 | C8: =VLOOKUP('LCFV TCO Dashboard'!$C$15,'Operational Cost'!$A$45:$E$47,3,0) -> 101 | D8: =VLOOKUP('LCFV TCO Dashboard'!$C$15,'Operational Cost'!$A$45:$E$47,4,0) -> 89 | E8: =VLOOKUP('LCFV TCO Dashboard'!$C$15,'Operational Cost'!$A$45:$E$47,5,0) -> 43
A9: Mileage (km/kWh; km/L; km/kg) | B9: ='LCFV TCO Dashboard'!C46 -> 5 | C9: ='LCFV TCO Dashboard'!D46 -> 13 | D9: ='LCFV TCO Dashboard'!E46 -> 11 | E9: ='LCFV TCO Dashboard'!F46 -> 13
A10: Annual fuel consumption (kWh; L; kg) | B10: =Summary!B4/B9 -> 9450 | C10: =Summary!B4/C9 -> 3634.615385 | D10: =Summary!B4/D9 -> 4295.454545 | E10: =Summary!$B$4/E9 -> 3634.615385
A11: Total Annual Fuel Cost ( ₹ ) | B11: =(B10*B8) -> 56700 | C11: =(C10*C8) -> 367096.1538 | D11: =(D10*D8) -> 382295.4545 | E11: =(E10*E8) -> 156288.4615
A12: Per km Fuel Cost | B12: =B11/Summary!$B$4 -> 1.2 | C12: =C11/Summary!$B$4 -> 7.769230769 | D12: =D11/Summary!$B$4 -> 8.090909091 | E12: =E11/Summary!$B$4 -> 3.307692308
A14: Maintenance Cost | B14: e-LCFV | C14: Petrol - LCFV | D14: Diesel - LCFV | E14: CNG - LCFV
A15: Annual Maintenance Cost (₹) | B15: =VLOOKUP('LCFV TCO Dashboard'!$C$15,'Operational Cost'!$A$40:$E$42,2,0) -> 15017 | C15: =VLOOKUP('LCFV TCO Dashboard'!$C$15,'Operational Cost'!$A$40:$E$42,3,0) -> 24726 | D15: =VLOOKUP('LCFV TCO Dashboard'!$C$15,'Operational Cost'!$A$40:$E$42,4,0) -> 27200 | E15: =VLOOKUP('LCFV TCO Dashboard'!$C$15,'Operational Cost'!$A$40:$E$42,5,0) -> 25200
A16: Other Consumables (₹) | B16: 0 | C16: 0 | D16: 0 | E16: 0
A17: Other Misc. Cost (₹) | B17: 0 | C17: 0 | D17: 0 | E17: 0
A18: Total Annual Maintenance cost (₹) | B18: =(SUM(B15:B17)) -> 15017 | C18: =(SUM(C15:C17)) -> 24726 | D18: =(SUM(D15:D17)) -> 27200 | E18: =(SUM(E15:E17)) -> 25200
A19: Per km Maintenance Cost | B19: =B18/Summary!$B$4 -> 0.3178201058 | C19: =C18/Summary!$B$4 -> 0.5233015873 | D19: =D18/Summary!$B$4 -> 0.5756613757 | E19: =E18/Summary!$B$4 -> 0.5333333333
A21: Battery Replacement Cost | B21: e-LCFV | C21: Petrol - LCFV | D21: Diesel - LCFV | E21: CNG - LCFV
A22: Number of battery replacements | B22: ='LCFV TCO Dashboard'!C45 -> 1 | C22: 0 | D22: 0 | E22: 0
A23: Capacity of battery (kWh) | B23: ='LCFV TCO Dashboard'!C44 -> 20 | C23: 0 | D23: 0 | E23: 0
A24: Battery Cost (₹ / kWh) | B24: =Summary!B6*Summary!B7 -> 10001 | C24: 0 | D24: 0 | E24: 0
A25: Total battery Cost (₹) | B25: =B24*B23 -> 200020 | C25: =C24*C23 -> 0 | D25: =D24*D23 -> 0 | E25: 0
A26: Battery replacement Charge (₹) | B26: =B25*0.2 -> 40004 | C26: 0 | D26: 0 | E26: 0
A27: Total battery replacement cost (₹) | B27: =((B25+B26)*B22) -> 240024 | C27: =((C25+C26)*C22) -> 0 | D27: =((D25+D26)*D22) -> 0 | E27: 0
A28: Annual Battery Replacement Cost | B28: =B27/Summary!B3 -> 24002.4 | C28: =C27/Summary!B3 -> 0 | D28: =D27/Summary!B3 -> 0
A29: Per Km Battery Replacement Cost | B29: =B27/Summary!$B$5 -> 0.5079873016 | C29: =C27/Summary!$B$5 -> 0 | D29: =D27/Summary!$B$5 -> 0 | E29: =E27/Summary!$B$5 -> 0
A31: Total Operational Cost | B31: =B27+B18+B11+B4 -> 611741 | C31: =C27+C18+C11+C4 -> 691822.1538 | D31: =D27+D18+D11+D4 -> 709495.4545 | E31: =E27+E18+E11+E4 -> 481488.4615
A32: Per Km Operational Cost | B32: =B29+B19+B12+B5 -> 8.375013757 | C32: =C29+C19+C12+C5 -> 14.64173871 | D32: =D29+D19+D12+D5 -> 15.01577682 | E32: =E29+E19+E12+E5 -> 10.19023199
A34: STAFF COST
A35: INR | B35: =IF($A$35='LCFV TCO Dashboard'!$C$15,'LCFV TCO Dashboard'!C39,) -> 25000
A36: USD | B36: =IF($A$36='LCFV TCO Dashboard'!$C$15,'LCFV TCO Dashboard'!C39*Currency!$C$5,) -> 0
A37: EURO | B37: =IF($A$37='LCFV TCO Dashboard'!$C$15,'LCFV TCO Dashboard'!C39*Currency!$C$8,) -> 0
A39: ANNUAL MAINTENANCE COST
A40: INR | B40: =IF($A$40='LCFV TCO Dashboard'!$C$15,'LCFV TCO Dashboard'!C47,) -> 15017 | C40: =IF($A$40='LCFV TCO Dashboard'!$C$15,'LCFV TCO Dashboard'!D47,) -> 24726 | D40: =IF($A$40='LCFV TCO Dashboard'!$C$15,'LCFV TCO Dashboard'!E47,) -> 27200 | E40: =IF($A$40='LCFV TCO Dashboard'!$C$15,'LCFV TCO Dashboard'!F47,) -> 25200
A41: USD | B41: =IF($A$41='LCFV TCO Dashboard'!$C$15,'LCFV TCO Dashboard'!C47*Currency!$C$5,) -> 0 | C41: =IF($A$41='LCFV TCO Dashboard'!$C$15,'LCFV TCO Dashboard'!D47*Currency!$C$5,) -> 0 | D41: =IF($A$41='LCFV TCO Dashboard'!$C$15,'LCFV TCO Dashboard'!E47*Currency!$C$5,) -> 0 | E41: =IF($A$41='LCFV TCO Dashboard'!$C$15,'LCFV TCO Dashboard'!F47*Currency!$C$5,) -> 0
A42: EURO | B42: =IF($A$42='LCFV TCO Dashboard'!$C$15,'LCFV TCO Dashboard'!C47*Currency!$C$8,) -> 0 | C42: =IF($A$42='LCFV TCO Dashboard'!$C$15,'LCFV TCO Dashboard'!D47*Currency!$C$8,) -> 0 | D42: =IF($A$42='LCFV TCO Dashboard'!$C$15,'LCFV TCO Dashboard'!E47*Currency!$C$8,) -> 0 | E42: =IF($A$42='LCFV TCO Dashboard'!$C$15,'LCFV TCO Dashboard'!F47*Currency!$C$8,) -> 0
A44: AVERAGE FUEL COST
A45: INR | B45: =IF($A$45='LCFV TCO Dashboard'!$C$15,'LCFV TCO Dashboard'!C43,) -> 6 | C45: =IF($A$45='LCFV TCO Dashboard'!$C$15,'LCFV TCO Dashboard'!D43,) -> 101 | D45: =IF($A$45='LCFV TCO Dashboard'!$C$15,'LCFV TCO Dashboard'!E43,) -> 89 | E45: =IF($A$45='LCFV TCO Dashboard'!$C$15,'LCFV TCO Dashboard'!F43,) -> 43
A46: USD | B46: =IF($A$46='LCFV TCO Dashboard'!$C$15,'LCFV TCO Dashboard'!C43*Currency!$C$5,) -> 0 | C46: =IF($A$46='LCFV TCO Dashboard'!$C$15,'LCFV TCO Dashboard'!$D$43*Currency!$C$5/3.78,) -> 0 | D46: =IF($A$46='LCFV TCO Dashboard'!$C$15,'LCFV TCO Dashboard'!E43*Currency!$C$5/3.78,) -> 0 | E46: =IF($A$46='LCFV TCO Dashboard'!$C$15,'LCFV TCO Dashboard'!F43*Currency!$C$5/2.567,) -> 0
A47: EURO | B47: =IF($A$47='LCFV TCO Dashboard'!$C$15,'LCFV TCO Dashboard'!C43*Currency!$C$8,) -> 0 | C47: =IF($A$47='LCFV TCO Dashboard'!$C$15,'LCFV TCO Dashboard'!D43*Currency!$C$8,) -> 0 | D47: =IF($A$47='LCFV TCO Dashboard'!$C$15,'LCFV TCO Dashboard'!E43*Currency!$C$8,) -> 0 | E47: =IF($A$47='LCFV TCO Dashboard'!$C$15,'LCFV TCO Dashboard'!F43*Currency!$C$8,) -> 0

Sheet Financing (hidden)
A1: Vehicle Cost | B1: e-LCFV | C1: Petrol - LCFV | D1: Diesel - LCFV | E1: CNG - LCFV
A2: Total Cost of LCFV (₹) | B2: ='LCFV TCO Dashboard'!C20-'LCFV TCO Dashboard'!C23 -> 535000 | C2: ='LCFV TCO Dashboard'!D20 -> 441000 | D2: ='LCFV TCO Dashboard'!E20 -> 529000 | E2: ='LCFV TCO Dashboard'!F20 -> 565000
A3: Share of Operator (%) | B3: =100%-B6 -> 0.8 | C3: =100%-C6 -> 0.8 | D3: 0.8 | E3: 0.8
A4: Share of Operator (₹) | B4: =B3*B2 -> 428000 | C4: =C3*C2 -> 352800 | D4: =D3*D2 -> 423200 | E4: =E3*E2 -> 452000
A5: Processing Fees | B5: =IF(B8=0,0,IF(B4*0.5%>500,B4*0.5%,500)) -> 2140 | C5: =IF(C8=0,0,IF(C4*0.5%>500,C4*0.5%,500)) -> 1764 | D5: 2116 | E5: 2260
A6: Equity % | B6: ='LCFV TCO Dashboard'!C31 -> 0.2 | C6: ='LCFV TCO Dashboard'!D31 -> 0.2 | D6: ='LCFV TCO Dashboard'!E31 -> 0.2 | E6: ='LCFV TCO Dashboard'!F31 -> 0.2
A7: Equity (₹) | B7: =(B6*B2) -> 107000 | C7: =(C6*C2) -> 88200 | D7: =(D6*D2) -> 105800 | E7: =(E6*E2) -> 113000
A8: Loan amount (₹) | B8: =B4 -> 428000 | C8: =C4 -> 352800 | D8: =D4 -> 423200 | E8: =E4 -> 452000
A9: Interest rate (%) | B9: ='LCFV TCO Dashboard'!C30 -> 0.08 | C9: ='LCFV TCO Dashboard'!D30 -> 0.11 | D9: ='LCFV TCO Dashboard'!E30 -> 0.11 | E9: ='LCFV TCO Dashboard'!F30 -> 0.11
A10: Term of payment (yrs) | B10: ='LCFV TCO Dashboard'!C29 -> 7 | C10: ='LCFV TCO Dashboard'!D29 -> 7 | D10: ='LCFV TCO Dashboard'!E29 -> 7 | E10: ='LCFV TCO Dashboard'!F29 -> 7
A11: No of EMI (Yearly) | B11: =B10*12 -> 84 | C11: =C10*12 -> 84 | D11: 84 | E11: 84
A12: Monthly EMI Loan (Rs.) | B12: =((PMT(B9/12,B10*12,-B8))+(B5/B11)) -> 6696.375955 | C12: =((PMT(C9/12,C10*12,-C8))+(C5/C11)) -> 6061.795574 | D12: 7271.405575 | E12: 7766.24603
A13: Total interest paid | B13: =(B12*B10*12)-B8 -> 134495.5802 | C13: =(C12*C10*12)-C8 -> 156390.8282 | D13: 187598.0683 | E13: 200364.6666
A14: Yearly Interest Paid | B14: =B13/B10 -> 19213.65431 | C14: =C13/C10 -> 22341.54689 | D14: =D13/D10 -> 26799.72405 | E14: =E13/E10 -> 28623.52379
A15: EMI per KM (Rs.) | B15: =B14/Summary!B4 -> 0.4066381866 | C15: =C14/Summary!B4 -> 0.4728369712 | D15: =D14/Summary!B4 -> 0.5671899269 | E15: =E14/Summary!B4 -> 0.6057888634
A17: Total Interest Paid | B17: =VLOOKUP('LCFV TCO Dashboard'!$C$15,Financing!$A$22:$E$24,2,0) -> 134495.5802 | C17: =VLOOKUP('LCFV TCO Dashboard'!$C$15,Financing!$A$22:$E$24,3,0) -> 156390.8282 | D17: =VLOOKUP('LCFV TCO Dashboard'!$C$15,Financing!$A$22:$E$24,4,0) -> 187598.0683 | E17: =VLOOKUP('LCFV TCO Dashboard'!$C$15,Financing!$A$22:$E$24,5,0) -> 200364.6666
A18: (Used for Dashboard Calc.)
A21: YEARLY INTEREST
A22: INR | B22: =IF($A$22='LCFV TCO Dashboard'!$C$15,Financing!B13,) -> 134495.5802 | C22: =IF($A$22='LCFV TCO Dashboard'!$C$15,Financing!C13,) -> 156390.8282 | D22: =IF($A$22='LCFV TCO Dashboard'!$C$15,Financing!D13,) -> 187598.0683 | E22: =IF($A$22='LCFV TCO Dashboard'!$C$15,Financing!E13,) -> 200364.6666
A23: USD | B23: =IF($A$23='LCFV TCO Dashboard'!$C$15,Financing!B13*Currency!$C$5,) -> 0 | C23: =IF($A$23='LCFV TCO Dashboard'!$C$15,Financing!C13*Currency!$C$5,) -> 0 | D23: =IF($A$23='LCFV TCO Dashboard'!$C$15,Financing!D13*Currency!$C$5,) -> 0 | E23: =IF($A$23='LCFV TCO Dashboard'!$C$15,Financing!E13*Currency!$C$5,) -> 0
A24: EURO | B24: =IF($A$24='LCFV TCO Dashboard'!$C$15,Financing!B13*Currency!$C$8,) -> 0 | C24: =IF($A$24='LCFV TCO Dashboard'!$C$15,Financing!C13*Currency!$C$8,) -> 0 | D24: =IF($A$24='LCFV TCO Dashboard'!$C$15,Financing!D13*Currency!$C$8,) -> 0 | E24: =IF($A$24='LCFV TCO Dashboard'!$C$15,Financing!E13*Currency!$C$8,) -> 0

Sheet TCO_1 (hidden)
A1: Parameter | B1: Unit | C1: e-LCFV | D1: Petrol - LCFV | E1: Diesel - LCFV | F1: CNG - LCFV
A2: Discount rate value | B2: - | C2: =Summary!B9 -> 0.1 | D2: =Summary!C9 -> 0.1 | E2: =Summary!D9 -> 0.1 | F2: =Summary!E9 -> 0.1
A3: Resale rate value | B3: - | C3: =Summary!B10 -> 0.2 | D3: =Summary!C10 -> 0.1 | E3: =Summary!D10 -> 0.1 | F3: =Summary!E10 -> 0.1
A4: Capital recovery factor (CRF)_N | B4: - | C4: =C2*(1+C2)^Summary!B3 -> 0.259374246 | D4: =D2*(1+D2)^Summary!B3 -> 0.259374246 | E4: =E2*(1+E2)^Summary!B3 -> 0.259374246 | F4: =F2*(1+F2)^Summary!B3 -> 0.259374246
A5: Capital recovery factor (CRF)_D | B5: - | C5: =((1+C2)^Summary!B3)-1 -> 1.59374246 | D5: =(1+D2)^Summary!B3-1 -> 1.59374246 | E5: =(1+E2)^Summary!B3-1 -> 1.59374246 | F5: =(1+F2)^Summary!B3-1 -> 1.59374246
A6: CRF | B6: - | C6: =C4/C5 -> 0.1627453949 | D6: =D4/D5 -> 0.1627453949 | E6: =E4/E5 -> 0.1627453949 | F6: =F4/F5 -> 0.1627453949
A7: Present value factor (PVF) | B7: - | C7: =1/(1+C2)^10 -> 0.3855432894 | D7: =1/(1+D2)^Summary!B3 -> 0.3855432894 | E7: =1/(1+E2)^Summary!B3 -> 0.3855432894 | F7: =1/(1+F2)^Summary!B3 -> 0.3855432894
A8: Residual value (RV) | B8: ₹ | C8: =Summary!B13*C3 -> 184999.116 | D8: =Summary!C13*D3 -> 64067.48282 | E8: =Summary!D13*E3 -> 76445.90683 | F8: =Summary!E13*F3 -> 81481.46666
A9: Annual Travel Distance | B9: km | C9: =Summary!$B$4 -> 47250 | D9: =Summary!$B$4 -> 47250 | E9: =Summary!$B$4 -> 47250 | F9: =Summary!$B$4 -> 47250
A10: Capex component | B10: ₹ | C10: =((Summary!B18-(C8*C7))*C6) -> 160413.3205 | D10: =(Summary!C18-(D8*D7))*D6 -> 100246.9384 | E10: =(Summary!D18-(E8*E7))*E6 -> 119615.5643 | F10: =(Summary!E18-(F8*F7))*F6 -> 127494.7479
A11: TCO | B11: ₹/km | C11: =(C10+L22)/C9 -> 8.541074314 | D11: =(D10+L23)/D9 -> 11.11834293 | E11: =(E10+L24)/E9 -> 11.75809116 | F11: =(F10+L25)/F9 -> 8.959757971
A13: Opex / year
A14: Vehicle type | B14: Unit | C14: 1 | D14: =C14+1 -> 2 | E14: 3 | F14: 4 | G14: 5 | H14: 6 | I14: 7 | J14: 8 | K14: 9 | L14: 10 | M14: Total
A15: e-LCFV | B15: ₹ | C15: =Summary!$B$26/(1+$C$2)^C14 -> 359744.9091 | D15: =Summary!$B$26/(1+$C$2)^D14 -> 327040.8264 | E15: =Summary!$B$26/(1+$C$2)^E14 -> 297309.8422 | F15: =Summary!$B$26/(1+$C$2)^F14 -> 270281.6747 | G15: =Summary!$B$26/(1+$C$2)^G14 -> 245710.6134 | H15: =Summary!$B$26/(1+$C$2)^H14 -> 223373.2849 | I15: =Summary!$B$26/(1+$C$2)^I14 -> 203066.6227 | J15: =Summary!$B$26/(1+$C$2)^J14 -> 184606.0206 | K15: =Summary!$B$26/(1+$C$2)^K14 -> 167823.6551 | L15: =Summary!$B$26/(1+$C$2)^L14 -> 152566.9592 | M15: =SUM(C15:L15)/Summary!B3 -> 243152.4408
A16: Petrol - LCFV | B16: ₹ | C16: =Summary!$C$26/(1+$D$2)^C14 -> 628929.2308 | D16: =Summary!$C$26/(1+$D$2)^D14 -> 571753.8462 | E16: =Summary!$C$26/(1+$D$2)^E14 -> 519776.2238 | F16: =Summary!$C$26/(1+$D$2)^F14 -> 472523.8398 | G16: =Summary!$C$26/(1+$D$2)^G14 -> 429567.1271 | H16: =Summary!$C$26/(1+$D$2)^H14 -> 390515.5701 | I16: =Summary!$C$26/(1+$D$2)^I14 -> 355014.1546 | J16: =Summary!$C$26/(1+$D$2)^J14 -> 322740.1406 | K16: =Summary!$C$26/(1+$D$2)^K14 -> 293400.1278 | L16: =Summary!$C$26/(1+$D$2)^L14 -> 266727.3889 | M16: =SUM(C16:L16)/Summary!B3 -> 425094.765
A17: Diesel - LCFV | B17: ₹ | C17: =Summary!$D$26/(1+$E$2)^C14 -> 644995.8678 | D17: =Summary!$D$26/(1+$E$2)^D14 -> 586359.8798 | E17: =Summary!$D$26/(1+$E$2)^E14 -> 533054.4362 | F17: =Summary!$D$26/(1+$E$2)^F14 -> 484594.942 | G17: =Summary!$D$26/(1+$E$2)^G14 -> 440540.8563 | H17: =Summary!$D$26/(1+$E$2)^H14 -> 400491.6876 | I17: =Summary!$D$26/(1+$E$2)^I14 -> 364083.3523 | J17: =Summary!$D$26/(1+$E$2)^J14 -> 330984.8658 | K17: =Summary!$D$26/(1+$E$2)^K14 -> 300895.3325 | L17: =Summary!$D$26/(1+$E$2)^L14 -> 273541.2114 | M17: =SUM(C17:L17)/Summary!B3 -> 435954.2432
A18: CNG - LCFV | B18: ₹ | C18: =Summary!$E$26/(1+$F$2)^C14 -> 437716.7832 | D18: =Summary!$E$26/(1+$F$2)^D14 -> 397924.3484 | E18: =Summary!$E$26/(1+$F$2)^E14 -> 361749.4076 | F18: =Summary!$E$26/(1+$F$2)^F14 -> 328863.0978 | G18: =Summary!$E$26/(1+$F$2)^G14 -> 298966.4526 | H18: =Summary!$E$26/(1+$F$2)^H14 -> 271787.6842 | I18: =Summary!$E$26/(1+$F$2)^I14 -> 247079.7129 | J18: =Summary!$E$26/(1+$F$2)^J14 -> 224617.9208 | K18: =Summary!$E$26/(1+$F$2)^K14 -> 204198.1098 | L18: =Summary!$E$26/(1+$F$2)^L14 -> 185634.6453 | M18: =SUM(C18:L18)/Summary!B3 -> 295853.8163
A20: Opex Sum
A21: Vehicle type | B21: Unit | C21: 1 | D21: =C21+1 -> 2 | E21: 3 | F21: 4 | G21: 5 | H21: 6 | I21: 7 | J21: 8 | K21: 9 | L21: 10
A22: e-LCFV | B22: ₹/km | C22: =(1/C21)*SUM($C$15:C15) -> 359744.9091 | D22: =(1/D21)*SUM($C$15:D15) -> 343392.8678 | E22: =(1/E21)*SUM($C$15:E15) -> 328031.8593 | F22: =(1/F21)*SUM($C$15:F15) -> 313594.3131 | G22: =(1/G21)*SUM($C$15:G15) -> 300017.5732 | H22: =(1/H21)*SUM($C$15:H15) -> 287243.5251 | I22: =(1/I21)*SUM($C$15:I15) -> 275218.2534 | J22: =(1/J21)*SUM($C$15:J15) -> 263891.7243 | K22: =(1/K21)*SUM($C$15:K15) -> 253217.4944 | L22: =(1/L21)*SUM($C$15:L15) -> 243152.4408
A23: Petrol - LCFV | B23: ₹/km | C23: =(1/C21)*SUM($C$16:C16) -> 628929.2308 | D23: =(1/D21)*SUM($C$16:D16) -> 600341.5385 | E23: =(1/E21)*SUM($C$16:E16) -> 573486.4336 | F23: =(1/F21)*SUM($C$16:F16) -> 548245.7851 | G23: =(1/G21)*SUM($C$16:G16) -> 524510.0535 | H23: =(1/H21)*SUM($C$16:H16) -> 502177.6396 | I23: =(1/I21)*SUM($C$16:I16) -> 481154.2846 | J23: =(1/J21)*SUM($C$16:J16) -> 461352.5166 | K23: =(1/K21)*SUM($C$16:K16) -> 442691.1401 | L23: =(1/L21)*SUM($C$16:L16) -> 425094.765
A24: Diesel - LCFV | B24: ₹/km | C24: =(1/C21)*SUM($C$17:C17) -> 644995.8678 | D24: =(1/D21)*SUM($C$17:D17) -> 615677.8738 | E24: =(1/E21)*SUM($C$17:E17) -> 588136.7279 | F24: =(1/F21)*SUM($C$17:F17) -> 562251.2814 | G24: =(1/G21)*SUM($C$17:G17) -> 537909.1964 | H24: =(1/H21)*SUM($C$17:H17) -> 515006.2783 | I24: =(1/I21)*SUM($C$17:I17) -> 493445.8603 | J24: =(1/J21)*SUM($C$17:J17) -> 473138.236 | K24: =(1/K21)*SUM($C$17:K17) -> 454000.1356 | L24: =(1/L21)*SUM($C$17:L17) -> 435954.2432
A25: CNG - LCFV | B25: ₹/km | C25: =(1/C21)*SUM($C$18:C18) -> 437716.7832 | D25: =(1/D21)*SUM($C$18:D18) -> 417820.5658 | E25: =(1/E21)*SUM($C$18:E18) -> 399130.1797 | F25: =(1/F21)*SUM($C$18:F18) -> 381563.4093 | G25: =(1/G21)*SUM($C$18:G18) -> 365044.0179 | H25: =(1/H21)*SUM($C$18:H18) -> 349501.2956 | I25: =(1/I21)*SUM($C$18:I18) -> 334869.641 | J25: =(1/J21)*SUM($C$18:J18) -> 321088.1759 | K25: =(1/K21)*SUM($C$18:K18) -> 308100.3908 | L25: =(1/L21)*SUM($C$18:L18) -> 295853.8163
A27: TCO / year
A28: Vehicle type | B28: Unit | C28: 1 | D28: =C28+1 -> 2 | E28: 3 | F28: 4 | G28: 5 | H28: 6 | I28: 7 | J28: 8 | K28: 9 | L28: 10 | M28: Average TCO
A29: PVF | B29: - | C29: =1/(1+$C$2)^C28 -> 0.9090909091 | D29: =1/(1+$C$2)^D28 -> 0.826446281 | E29: 0.7513148009 | F29: 0.6830134554 | G29: 0.6209213231 | H29: 0.5644739301 | I29: 0.5131581182 | J29: 0.4665073802 | K29: 0.4240976184 | L29: 0.3855432894
A30: CRF | B30: - | C30: =($C$2*(1+$C$2)^C28)/((1+$C$2)^C28-1) -> 1.1 | D30: =($C$2*(1+$C$2)^D28)/((1+$C$2)^D28-1) -> 0.5761904762 | E30: 0.4021148036 | F30: 0.3154708037 | G30: 0.2637974808 | H30: 0.2296073804 | I30: 0.2054054997 | J30: 0.1874440176 | K30: 0.1736405391 | L30: 0.1627453949
A31: e-LCFV | B31: ₹/km | C31: =(((Summary!$B$18-($C$8*C29))*C30)+C22)/($C$9) -> 28.30562818 | D31: =(((Summary!$B$18-($C$8*D29))*D30)+D22)/($C$9) -> 18.29267381 | E31: =(((Summary!$B$18-($C$8*E29))*E30)+E22)/($C$9) -> 14.75501498 | F31: =(((Summary!$B$18-($C$8*F29))*F30)+F22)/($C$9) -> 12.85044762 | G31: =(((Summary!$B$18-($C$8*G29))*G30)+G22)/($C$9) -> 11.60948054 | H31: =(((Summary!$B$18-($C$8*H29))*H30)+H22)/($C$9) -> 10.70815366 | I31: =(((Summary!$B$18-($C$8*I29))*I30)+I22)/($C$9) -> 10.00700602 | J31: =(((Summary!$B$18-($C$8*J29))*J30)+J22)/($C$9) -> 9.435812834 | K31: =(((Summary!$B$18-($C$8*K29))*K30)+K22)/($C$9) -> 8.955160679 | L31: =(((Summary!$B$18-($C$8*L29))*L30)+L22)/($C$9) -> 8.541074314 | M31: =SUM(C31:L31)/$L$28 -> 13.34604526
A32: PVF | B32: - | C32: =1/(1+$D$2)^C28 -> 0.9090909091 | D32: =1/(1+$D$2)^D28 -> 0.826446281 | E32: 0.7513148009 | F32: 0.6830134554 | G32: 0.6209213231 | H32: 0.5644739301 | I32: 0.5131581182 | J32: 0.4665073802 | K32: 0.4240976184 | L32: 0.3855432894
A33: CRF | B33: - | C33: =($D$2*(1+$D$2)^C28)/((1+$D$2)^C28-1) -> 1.1 | D33: =($D$2*(1+$D$2)^D28)/((1+$D$2)^D28-1) -> 0.5761904762 | E33: 0.4021148036 | F33: 0.3154708037 | G33: 0.2637974808 | H33: 0.2296073804 | I33: 0.2054054997 | J33: 0.1874440176 | K33: 0.1736405391 | L33: 0.1627453949
A34: Petrol - LCFV | B34: ₹/km | C34: =(((Summary!$C$18-($D$8*C32))*C33)+C23)/($D$9) -> 26.86992717 | D34: =(((Summary!$C$18-($D$8*D32))*D33)+D23)/($D$9) -> 19.87267614 | E34: =(((Summary!$C$18-($D$8*E32))*E33)+E23)/($D$9) -> 17.18001124 | F34: =(((Summary!$C$18-($D$8*F32))*F33)+F23)/($D$9) -> 15.5884723 | G34: =(((Summary!$C$18-($D$8*G32))*G33)+G23)/($D$9) -> 14.45554216 | H34: =(((Summary!$C$18-($D$8*H32))*H33)+H23)/($D$9) -> 13.5656654 | I34: =(((Summary!$C$18-($D$8*I32))*I33)+I23)/($D$9) -> 12.82538313 | J34: =(((Summary!$C$18-($D$8*J32))*J33)+J23)/($D$9) -> 12.1871082 | K34: =(((Summary!$C$18-($D$8*K32))*K33)+K23)/($D$9) -> 11.62371002 | L34: =(((Summary!$C$18-($D$8*L32))*L33)+L23)/($D$9) -> 11.11834293 | M34: =SUM(C34:L34)/$L$28 -> 15.52868387
A35: PVF | B35: - | C35: =1/(1+$E$2)^C28 -> 0.9090909091 | D35: =1/(1+$E$2)^D28 -> 0.826446281 | E35: 0.7513148009 | F35: 0.6830134554 | G35: 0.6209213231 | H35: 0.5644739301 | I35: 0.5131581182 | J35: 0.4665073802 | K35: 0.4240976184 | L35: 0.3855432894
A36: CRF | B36: - | C36: =($E$2*(1+$E$2)^C28)/((1+$E$2)^C28-1) -> 1.1 | D36: =($E$2*(1+$E$2)^D28)/((1+$E$2)^D28-1) -> 0.5761904762 | E36: 0.4021148036 | F36: 0.3154708037 | G36: 0.2637974808 | H36: 0.2296073804 | I36: 0.2054054997 | J36: 0.1874440176 | K36: 0.1736405391 | L36: 0.1627453949
A37: Diesel - LCFV | B37: ₹/km | C37: =(((Summary!$D$18-($E$8*C35))*C36)+C24)/($E$9) -> 29.8297341 | D37: =(((Summary!$D$18-($E$8*D35))*D36)+D24)/($E$9) -> 21.58199144 | E37: =(((Summary!$D$18-($E$8*E35))*E36)+E24)/($E$9) -> 18.4643724 | F37: =(((Summary!$D$18-($E$8*F35))*F36)+F24)/($E$9) -> 16.65489814 | G37: =(((Summary!$D$18-($E$8*G35))*G36)+G24)/($E$9) -> 15.38730002 | H37: =(((Summary!$D$18-($E$8*H35))*H36)+H24)/($E$9) -> 14.40473584 | I37: =(((Summary!$D$18-($E$8*I35))*I36)+I24)/($E$9) -> 13.59602409 | J37: =(((Summary!$D$18-($E$8*J35))*J36)+J24)/($E$9) -> 12.90469371 | K37: =(((Summary!$D$18-($E$8*K35))*K36)+K24)/($E$9) -> 12.29866037 | L37: =(((Summary!$D$18-($E$8*L35))*L36)+L24)/($E$9) -> 11.75809116 | M37: =SUM(C37:L37)/$L$28 -> 16.68805013
A38: PVF | B38: - | C38: =1/(1+$F$2)^C28 -> 0.9090909091 | D38: =1/(1+$F$2)^D28 -> 0.826446281 | E38: 0.7513148009 | F38: 0.6830134554 | G38: 0.6209213231 | H38: 0.5644739301 | I38: 0.5131581182 | J38: 0.4665073802 | K38: 0.4240976184 | L38: 0.3855432894
A39: CRF | B39: - | C39: =($F$2*(1+$F$2)^C28)/((1+$F$2)^C28-1) -> 1.1 | D39: =($F$2*(1+$F$2)^D28)/((1+$F$2)^D28-1) -> 0.5761904762 | E39: 0.4021148036 | F39: 0.3154708037 | G39: 0.2637974808 | H39: 0.2296073804 | I39: 0.2054054997 | J39: 0.1874440176 | K39: 0.1736405391 | L39: 0.1627453949
A40: CNG - LCFV | B40: ₹/km | C40: =(((Summary!$E$18-($F$8*C38))*C39)+C25)/($F$9) -> 26.50860211 | D40: =(((Summary!$E$18-($F$8*D38))*D39)+D25)/($F$9) -> 17.957848 | E40: =(((Summary!$E$18-($F$8*E38))*E39)+E25)/($F$9) -> 14.86058121 | F40: =(((Summary!$E$18-($F$8*F38))*F39)+F25)/($F$9) -> 13.14405862 | G40: =(((Summary!$E$18-($F$8*G38))*G39)+G25)/($F$9) -> 11.99245747 | H40: =(((Summary!$E$18-($F$8*H38))*H39)+H25)/($F$9) -> 11.13287105 | I40: =(((Summary!$E$18-($F$8*I38))*I39)+I25)/($F$9) -> 10.44758645 | J40: =(((Summary!$E$18-($F$8*J38))*J39)+J25)/($F$9) -> 9.877148017 | K40: =(((Summary!$E$18-($F$8*K38))*K39)+K25)/($F$9) -> 9.388040415 | L40: =(((Summary!$E$18-($F$8*L38))*L39)+L25)/($F$9) -> 8.959757971 | M40: =SUM(C40:L40)/$L$28 -> 13.42689513

Sheet Plots (hidden)
